bitfinex-derivatives/quotes_SOLF0:USTF0_20260204
["timestamp","ask_amount","ask_price","bid_price","bid_amount"]
[1770185884449,3.36992701,97.42,97.353,9.2571]
[1770185885045,3.36992701,97.42,97.36,3.36992701]
[1770185885247,3.36992701,97.42,97.361,15.21972079]
[1770185885649,3.36992701,97.42,97.363,15.21972079]
[1770185885949,3.36992701,97.42,97.365,15.21972079]
[1770185886249,3.36992701,97.41,97.365,15.21972079]
[1770185888448,3.36992701,97.4,97.365,15.21972079]
[1770185889048,3.36992701,97.39,97.365,15.21972079]
[1770185890348,3.36992701,97.42,97.365,15.21972079]
[1770185890552,3.36992701,97.42,97.367,15.21972079]
[1770185890747,3.36992701,97.41,97.367,15.21972079]
[1770185891148,143.8067,97.485,97.381,15.21972079]
[1770185891149,5.61143209,97.47,97.381,15.21972079]
[1770185891449,3.36992701,97.44,97.383,15.21972079]
[1770185892054,62.19342834,97.716,97.391,15.21972079]
[1770185892055,6.12419101,97.471,97.391,15.21972079]
[1770185892249,3.36992701,97.46,97.391,15.21972079]
[1770185892853,3.36992701,97.44,97.391,15.21972079]
[1770185894058,3.36992701,97.44,97.393,15.21972079]
[1770185894259,3.36992701,97.44,97.394,409.44]
[1770185894561,3.36992701,97.44,97.395,15.21972079]
[1770185895364,3.36992701,97.43,97.395,15.21972079]
[1770185895566,3.36992701,97.42,97.395,15.21972079]
[1770185897865,3.36992701,97.42,97.394,409.44]
[1770185898363,3.36992701,97.43,97.379,15.21972079]
[1770185898967,7.62866794,97.459,97.395,15.21972079]
[1770185899166,3.36992701,97.46,97.401,15.21972079]
[1770185899367,3.36992701,97.46,97.403,15.21972079]
[1770185900769,3.36992701,97.46,97.404,17.15939587]
[1770185901766,8.21222494,97.456,97.406,17.15939587]
[1770185901970,3.36992701,97.42,97.36,3.36992701]
[1770185902168,3.36992701,97.41,97.35,3.36992701]
[1770185902361,3.36992701,97.41,97.351,409.44]
[1770185902566,8.78859841,97.475,97.39,3.36992701]
[1770185902762,3.36992701,97.46,97.4,3.36992701]
[1770185903763,3.36992701,97.46,97.401,9.2525]
[1770185904068,3.36992701,97.46,97.402,17.15939587]
[1770185904266,3.36992701,97.46,97.401,9.2525]
[1770185904267,3.36992701,97.46,97.404,17.15939587]
[1770185904574,3.36992701,97.46,97.406,17.15939587]
[1770185904871,3.36992701,97.45,97.406,17.15939587]
[1770185907873,3.36992701,97.44,97.406,17.15939587]
[1770185908069,3.36992701,97.43,97.4,409.44]
[1770185909682,9.66931471,97.446,97.4,409.44]
[1770185909878,3.36992701,97.43,97.4,409.44]
[1770185910679,9.66931471,97.446,97.4,409.44]
[1770185910876,3.36992701,97.43,97.4,409.44]
[1770185911573,3.36992701,97.43,97.377,17.15939587]
[1770185911574,3.36992701,97.41,97.377,17.15939587]
[1770185913276,3.36992701,97.39,97.365,409.44]
[1770185913484,3.36992701,97.37,97.329,17.15939587]
[1770185913673,3.36992701,97.36,97.329,17.15939587]
[1770185914782,3.36992701,97.37,97.329,17.15939587]
[1770185914979,3.36992701,97.38,97.329,17.15939587]
[1770185917585,3.36992701,97.39,97.329,17.15939587]
[1770185918380,3.36992701,97.39,97.304,144.0725]
[1770185918381,3.36992701,97.4,97.341,17.15939587]
[1770185918581,3.36992701,97.4,97.343,17.15939587]
[1770185918886,3.36992701,97.39,97.343,17.15939587]
[1770185919987,3.36992701,97.4,97.343,17.15939587]
[1770185920874,143.8502,97.455,97.342,409.52]
[1770185920875,3.36992701,97.41,97.351,17.15939587]
[1770185921081,11.83127098,97.434,97.342,409.52]
[1770185921082,3.36992701,97.42,97.361,17.15939587]
[1770185922690,3.36992701,97.42,97.363,17.15939587]
[1770185923784,3.36992701,97.42,97.365,17.15939587]
[1770185925793,3.36992701,97.41,97.367,17.15939587]
[1770185929190,3.36992701,97.39,97.342,17.15939587]
[1770185929497,3.36992701,97.38,97.342,17.15939587]
[1770185929896,3.36992701,97.39,97.342,17.15939587]
[1770185930195,3.36992701,97.39,97.344,17.15939587]
[1770185931399,3.36992701,97.4,97.344,17.15939587]
[1770185931696,3.36992701,97.39,97.344,17.15939587]
[1770185933900,3.36992701,97.38,97.344,17.15939587]
[1770185935702,3.36992701,97.37,97.344,17.15939587]
[1770185936003,3.36992701,97.37,97.343,409.56]
[1770185936698,3.36992701,97.37,97.331,19.96167726]
[1770185937398,3.36992701,97.35,97.317,19.91414884]
[1770185939195,12.99646445,97.369,97.317,19.91414884]
[1770185939400,3.36992701,97.35,97.317,19.91414884]
[1770185939603,3.36992701,97.34,97.317,19.91414884]
[1770185940195,3.36992701,97.33,97.317,19.91414884]
[1770185940403,3.36992701,97.33,97.311,409.64]
[1770185940404,3.38047876,97.33,97.311,409.64]
[1770185941000,3.38047876,97.34,97.311,409.64]
[1770185941200,3.38047876,97.38,97.321,19.91414884]
[1770185941500,3.38047876,97.38,97.341,19.91414884]
[1770185942498,8.44313942,97.4,97.341,19.91414884]
[1770185942992,13.53934586,97.42,97.342,19.91414884]
[1770185943199,13.53934586,97.418,97.358,19.91414884]
[1770185943700,21.96700738,97.41,97.358,19.91414884]
[1770185945500,13.73834963,97.409,97.358,19.91414884]
[1770185949605,13.23338612,97.389,97.337,19.91414884]
[1770185949804,13.23338612,97.389,97.323,19.91414884]
[1770185950108,13.23338612,97.387,97.323,19.91414884]
[1770185950304,13.23338612,97.385,97.323,19.91414884]
[1770185950604,13.33553285,97.383,97.323,19.91414884]
[1770185950804,8.56721442,97.382,97.323,19.91414884]
[1770185951011,13.33553285,97.398,97.325,19.91414884]
[1770185951211,13.33553285,97.398,97.327,19.91414884]
[1770185952212,13.75477638,97.413,97.33,19.91414884]
[1770185952510,13.85526838,97.411,97.33,19.91414884]
[1770185952710,8.44313942,97.43,97.33,19.91414884]
[1770185952711,22.43977093,97.41,97.33,19.91414884]
[1770185953008,8.58450255,97.409,97.33,19.91414884]
[1770185953215,13.85526838,97.41,97.33,19.91414884]
[1770185953509,13.97945843,97.408,97.33,19.91414884]
[1770185953705,13.97945843,97.408,97.337,19.91414884]
[1770185954909,9.2507,97.421,97.337,19.91414884]
[1770185954910,14.07812676,97.406,97.337,19.91414884]
[1770185955211,14.07812676,97.404,97.337,19.91414884]
[1770185955405,22.76184124,97.403,97.337,19.91414884]
[1770185955609,14.17413555,97.403,97.337,19.91414884]
[1770185955806,8.58987188,97.402,97.337,19.91414884]
[1770185956011,14.17413555,97.403,97.337,19.91414884]
[1770185956213,8.58987188,97.402,97.337,19.91414884]
[1770185956413,8.58987188,97.401,97.337,19.91414884]
[1770185956617,8.58987188,97.4,97.339,19.91414884]
[1770185956809,14.27016584,97.42,97.339,19.91414884]
[1770185957011,14.27016584,97.418,97.339,19.91414884]
[1770185957210,14.27016584,97.416,97.339,19.91414884]
[1770185957410,14.44156555,97.414,97.339,19.91414884]
[1770185957612,8.59234741,97.413,97.339,19.91414884]
[1770185957910,8.59234741,97.412,97.339,19.91414884]
[1770185958112,23.03391296,97.411,97.339,19.91414884]
[1770185958309,8.59234741,97.41,97.339,19.91414884]
[1770185958516,14.53490868,97.428,97.356,19.91414884]
[1770185958720,8.59193871,97.427,97.356,19.91414884]
[1770185958912,8.59193871,97.426,97.356,19.91414884]
[1770185959112,8.59193871,97.425,97.356,19.91414884]
[1770185959317,8.59193871,97.424,97.357,409.66]
[1770185959521,8.59193871,97.423,97.358,19.91414884]
[1770185959725,8.59193871,97.422,97.359,19.91414884]
[1770185959925,8.59193871,97.421,97.359,19.91414884]
[1770185960121,8.59193871,97.42,97.361,19.91414884]
[1770185960322,8.59193871,97.419,97.361,19.91414884]
[1770185960521,8.59193871,97.418,97.361,19.91414884]
[1770185960725,8.59193871,97.417,97.361,19.91414884]
[1770185961026,8.59193871,97.416,97.361,19.91414884]
[1770185961227,8.59193871,97.415,97.361,19.91414884]
[1770185961523,14.79118088,97.413,97.363,21.68635891]
[1770185961729,14.79118088,97.419,97.365,21.68635891]
[1770185961923,14.79118088,97.419,97.367,21.68635891]
[1770185962123,8.44313942,97.42,97.369,21.68635891]
[1770185962323,12.66802024,97.462,97.366,298.82]
[1770185962324,14.79118088,97.45,97.375,21.68635891]
[1770185962724,14.79118088,97.45,97.4,21.68635891]
[1770185962925,14.88031504,97.481,97.4,21.68635891]
[1770185963124,14.88031504,97.479,97.4,21.68635891]
[1770185963324,8.59494302,97.478,97.4,21.68635891]
[1770185963524,8.59494302,97.477,97.404,21.68635891]
[1770185963822,8.59494302,97.476,97.404,21.68635891]
[1770185964020,8.59494302,97.475,97.404,21.68635891]
[1770185964219,14.88031504,97.479,97.404,21.68635891]
[1770185964427,8.58439754,97.478,97.404,21.68635891]
[1770185964619,14.88031504,97.479,97.404,21.68635891]
[1770185964818,8.58081761,97.478,97.404,21.68635891]
[1770185965023,8.58081761,97.477,97.404,21.68635891]
[1770185965328,14.88031504,97.479,97.404,21.68635891]
[1770185965529,14.88031504,97.479,97.408,9.2519]
[1770185965728,14.88031504,97.479,97.409,21.68635891]
[1770185967129,15.26823864,97.477,97.409,21.68635891]
[1770185967329,15.26823864,97.475,97.409,21.68635891]
[1770185968028,15.30100415,97.473,97.409,21.68635891]
[1770185968223,15.30100415,97.471,97.409,21.68635891]
[1770185969127,15.38345663,97.469,97.409,21.68635891]
[1770185972435,15.79615322,97.467,97.409,21.68635891]
[1770185972630,15.79615322,97.449,97.407,409.5]
[1770185972936,24.34075445,97.448,97.407,409.5]
[1770185973130,15.79615322,97.447,97.407,409.5]
[1770185973529,15.92628943,97.445,97.379,21.68635891]
[1770185973730,15.92628943,97.443,97.379,21.68635891]
[1770185976938,15.92628943,97.443,97.381,21.68635891]
[1770185977433,15.92628943,97.443,97.383,21.68635891]
[1770185978341,3.37403253,97.43,97.383,21.68635891]
[1770185978530,3.37403253,97.43,97.385,21.68635891]
[1770185978937,3.37403253,97.43,97.387,21.68635891]
[1770185979337,3.37403253,97.43,97.389,21.68635891]
[1770185985646,3.37403253,97.43,97.391,21.68635891]
[1770185986748,3.37403253,97.45,97.391,21.68635891]
[1770185993049,20.18597236,97.45,97.391,21.68635891]
[1770185995656,3.37403253,97.44,97.391,21.68635891]
[1770185998560,3.37403253,97.44,97.39,409.48]
[1770185998561,20.18597236,97.45,97.393,22.98096737]
[1770185999370,20.18597236,97.45,97.395,22.98096737]
[1770186000557,20.18448567,97.45,97.395,22.98096737]
[1770186001862,20.18448567,97.45,97.39,3.37254584]
[1770186001863,3.37254584,97.46,97.404,22.98096737]
[1770186002167,3.37254584,97.48,97.421,22.98096737]
[1770186002355,8.57579242,97.479,97.423,9.2505]
[1770186002556,3.37254584,97.49,97.431,22.98096737]
[1770186003758,3.37254584,97.49,97.447,9.2482]
[1770186005061,3.37254584,97.49,97.447,32.22916737]
[1770186005364,3.37254584,97.49,97.448,22.98096737]
[1770186006158,21.11053819,97.5,97.448,22.98096737]
[1770186006463,8.57824929,97.499,97.448,22.98096737]
[1770186006664,8.57824929,97.498,97.448,22.98096737]
[1770186006866,18.85351415,97.499,97.448,22.98096737]
[1770186006867,8.57824929,97.497,97.448,22.98096737]
[1770186007056,8.57824929,97.496,97.448,22.98096737]
[1770186007258,8.57824929,97.495,97.448,22.98096737]
[1770186007456,18.85351415,97.499,97.448,22.98096737]
[1770186007663,18.4696,97.589,97.422,459.9979]
[1770186007664,3.37254584,97.51,97.451,22.98096737]
[1770186007861,18.91918203,97.535,97.48,9.245]
[1770186008066,3.37254584,97.5,97.465,22.98096737]
[1770186008461,18.91918203,97.506,97.465,22.98096737]
[1770186008666,3.37254584,97.5,97.465,22.98096737]
[1770186010171,9.43342157,97.547,97.456,409.36]
[1770186010172,3.37254584,97.48,97.456,409.36]
[1770186010467,18.75574655,97.489,97.456,236.7187026]
[1770186010468,3.37254584,97.47,97.456,236.7187026]
[1770186010669,3.37254584,97.48,97.456,236.7187026]
[1770186010865,3.37254584,97.49,97.456,236.7187026]
[1770186011070,3.37254584,97.5,97.456,236.7187026]
[1770186011769,3.37254584,97.5,97.456,259.69966997]
[1770186012368,3.37254584,97.49,97.456,259.69966997]
[1770186015579,3.37254584,97.48,97.456,236.7187026]
[1770186016776,22.4173596,97.47,97.423,22.98096737]
[1770186016971,3.37254584,97.45,97.406,22.98096737]
[1770186017272,3.37254584,97.44,97.406,22.98096737]
[1770186017866,19.08674582,97.453,97.406,22.98096737]
[1770186018064,3.37254584,97.43,97.406,22.98096737]
[1770186018470,22.46647251,97.42,97.385,409.28]
[1770186018673,3.37254584,97.4,97.349,22.98096737]
[1770186018977,3.37254584,97.4,97.351,22.98096737]
[1770186020275,3.37254584,97.4,97.352,275.34]
[1770186020470,3.37254584,97.4,97.353,22.98096737]
[1770186021175,3.37254584,97.4,97.354,23.55257618]
[1770186021379,3.37254584,97.41,97.354,23.55257618]
[1770186022776,3.37254584,97.42,97.361,23.55257618]
[1770186023376,3.37254584,97.41,97.361,23.55257618]
[1770186023577,18.63349262,97.421,97.361,23.55257618]
[1770186023774,3.37254584,97.4,97.361,23.55257618]
[1770186024475,18.63995401,97.423,97.361,23.55257618]
[1770186027380,8.43905867,97.43,97.361,23.55257618]
[1770186027578,18.40424847,97.439,97.362,322.1]
[1770186027774,18.40424847,97.439,97.363,23.55257618]
[1770186028576,18.40424847,97.439,97.365,23.55257618]
[1770186029378,18.40424847,97.439,97.367,23.55257618]
[1770186035182,18.40424847,97.439,97.369,23.55257618]
[1770186035580,8.43905867,97.45,97.369,23.55257618]
[1770186035775,8.43905867,97.45,97.378,23.55257618]
[1770186035979,18.50326483,97.449,97.378,23.55257618]
[1770186036875,8.43905867,97.45,97.378,23.55257618]
[1770186036876,18.50942089,97.447,97.378,23.55257618]
[1770186038772,18.56795339,97.445,97.378,23.55257618]
[1770186038969,18.56795339,97.445,97.379,409.52]
[1770186039173,18.56795339,97.445,97.38,23.55257618]
[1770186041176,18.56795339,97.445,97.382,23.55257618]
[1770186041377,9.2473,97.457,97.382,23.55257618]
[1770186042381,9.2473,97.457,97.383,239.38]
[1770186042579,9.2473,97.457,97.384,23.55257618]
[1770186042776,27.91022561,97.457,97.384,23.55257618]
[1770186042976,18.66292561,97.456,97.384,23.55257618]
[1770186043379,18.66292561,97.456,97.386,23.55257618]
[1770186043772,18.96714799,97.449,97.386,23.55257618]
[1770186044372,3.37449017,97.42,97.386,23.55257618]
[1770186044575,3.37449017,97.42,97.385,232.96]
[1770186044779,3.37449017,97.41,97.385,232.96]
[1770186045281,3.37449017,97.41,97.373,23.55257618]
[1770186048080,3.37449017,97.42,97.373,23.55257618]
[1770186049274,3.37449017,97.43,97.375,23.55257618]
[1770186050280,3.37449017,97.43,97.377,23.55257618]
[1770186051182,3.37449017,97.43,97.379,23.42353489]
[1770186053690,3.37449017,97.43,97.381,23.42353489]
[1770186055078,3.37449017,97.42,97.381,23.42353489]
[1770186057388,18.97275134,97.435,97.381,23.42353489]
[1770186057583,3.37449017,97.42,97.381,23.42353489]
[1770186059994,3.37449017,97.43,97.381,23.42353489]
[1770186060193,8.57382002,97.429,97.381,23.42353489]
[1770186060498,8.57382002,97.428,97.381,23.42353489]
[1770186060793,8.57382002,97.427,97.381,23.42353489]
[1770186060994,8.57382002,97.426,97.381,23.42353489]
[1770186061194,8.58150468,97.425,97.381,23.42353489]
[1770186061389,3.37427193,97.42,97.381,23.42353489]
[1770186061589,3.37427193,97.39,97.357,25.0200111]
[1770186061992,3.37427193,97.38,97.357,25.0200111]
[1770186063394,3.37427193,97.39,97.357,25.0200111]
[1770186063594,3.37427193,97.38,97.339,25.0200111]
[1770186063790,8.57410284,97.379,97.339,25.0200111]
[1770186063990,143.9184,97.409,97.337,409.52]
[1770186063991,3.37427193,97.36,97.337,409.52]
[1770186064199,3.37427193,97.35,97.309,25.0200111]
[1770186064499,3.37427193,97.34,97.309,25.0200111]
[1770186064996,3.37427193,97.33,97.309,25.0200111]
[1770186065795,3.37427193,97.33,97.302,409.54]
[1770186066292,3.37427193,97.33,97.294,25.0200111]
[1770186067296,3.37427193,97.32,97.294,25.0200111]
[1770186067793,3.37427193,97.31,97.279,409.6]
[1770186068400,3.37427193,97.3,97.265,25.0200111]
[1770186068695,3.37427193,97.29,97.248,25.0200111]
[1770186068901,3.37427193,97.28,97.248,25.0200111]
[1770186069195,20.74476936,97.28,97.231,269.6000111]
[1770186069401,144.0306,97.333,97.232,25.0200111]
[1770186069402,3.37427193,97.29,97.232,25.0200111]
[1770186069602,20.49340541,97.295,97.241,25.0200111]
[1770186070598,144.0205,97.34,97.241,25.0200111]
[1770186070599,20.49764854,97.334,97.241,25.0200111]
[1770186070901,20.49764854,97.334,97.251,25.0200111]
[1770186070902,3.37427193,97.31,97.251,25.0200111]
[1770186071200,3.37427193,97.3,97.251,25.0200111]
[1770186071700,3.37427193,97.29,97.251,25.0200111]
[1770186071993,3.37427193,97.28,97.242,409.7]
[1770186072194,3.37427193,97.28,97.201,144.2254]
[1770186072195,3.37427193,97.25,97.218,25.0200111]
[1770186072388,3.37427193,97.25,97.19,3.37427193]
[1770186072594,3.37427193,97.24,97.194,25.0200111]
[1770186072794,144.1092,97.28,97.156,144.2914]
[1770186072795,3.37427193,97.2,97.156,25.0200111]
[1770186073096,3.37427193,97.19,97.131,25.0200111]
[1770186073299,3.37427193,97.19,97.133,25.0200111]
[1770186073498,3.37427193,97.19,97.118,144.3489]
[1770186073499,20.6771564,97.17,97.101,25.0200111]
[1770186073696,3.37427193,97.17,97.121,25.0200111]
[1770186073893,24.05142833,97.19,97.131,25.0200111]
[1770186074292,3.37427193,97.18,97.131,25.0200111]
[1770186074497,20.68083272,97.209,97.131,25.0200111]
[1770186074898,20.68083272,97.189,97.116,25.0200111]
[1770186075402,20.68083272,97.189,97.115,117.56]
[1770186075403,20.68083272,97.169,97.115,117.56]
[1770186075598,20.68083272,97.169,97.099,25.0200111]
[1770186076299,20.68083272,97.169,97.1,409.96]
[1770186076499,20.68083272,97.169,97.101,25.0200111]
[1770186077100,22.38899736,97.203,97.119,25.0200111]
[1770186077394,22.38899736,97.203,97.121,25.0200111]
[1770186077594,22.38899736,97.203,97.126,25.0200111]
[1770186079000,22.38899736,97.203,97.129,144.3319]
[1770186079300,22.51031417,97.22,97.137,25.0200111]
[1770186079803,22.51031417,97.22,97.132,144.3277]
[1770186079804,22.51031417,97.22,97.142,25.0200111]
[1770186080406,22.51031417,97.22,97.144,25.0200111]
[1770186080796,22.51031417,97.22,97.146,144.3072]
[1770186081000,21.6974362,97.237,97.157,25.84796663]
[1770186081403,21.6974362,97.237,97.16,25.84796663]
[1770186081707,21.6974362,97.237,97.147,410.16]
[1770186081708,30.05569557,97.28,97.2,25.84796663]
[1770186081909,30.05569557,97.28,97.204,25.84796663]
[1770186081910,21.57833272,97.28,97.204,25.84796663]
[1770186082408,21.57833272,97.28,97.203,144.2224]
[1770186082409,21.57833272,97.28,97.206,25.84796663]
[1770186083005,21.57833272,97.28,97.212,25.84796663]
[1770186083509,144.0265,97.336,97.208,144.2147]
[1770186083510,22.28116679,97.298,97.223,25.84796663]
[1770186083706,22.28116679,97.298,97.234,25.84796663]
[1770186084005,22.28116679,97.319,97.234,25.84796663]
[1770186085102,22.28116679,97.319,97.237,25.84796663]
[1770186085505,22.28116679,97.319,97.242,25.84796663]
[1770186086302,22.43435455,97.299,97.224,25.84796663]
[1770186086704,22.43435455,97.318,97.23,25.84796663]
[1770186086909,22.43435455,97.318,97.236,25.84796663]
[1770186087505,22.43435455,97.318,97.242,25.84796663]
[1770186088610,22.43435455,97.318,97.244,25.84796663]
[1770186089707,22.43435455,97.318,97.247,25.84796663]
[1770186091121,22.50883595,97.299,97.228,25.84796663]
[1770186092221,22.38817288,97.279,97.202,25.84796663]
[1770186096016,22.52049261,97.298,97.202,25.84796663]
[1770186096424,22.52049261,97.298,97.204,25.84796663]
[1770186096621,22.52049261,97.298,97.207,25.84796663]
[1770186097223,22.52049261,97.298,97.221,25.84796663]
[1770186097419,22.49873829,97.315,97.223,25.84796663]
[1770186097822,22.49873829,97.315,97.225,25.84796663]
[1770186098017,22.49873829,97.315,97.241,25.84796663]
[1770186099615,22.49873829,97.315,97.243,25.84796663]
[1770186100122,9.2597,97.327,97.243,25.84796663]
[1770186100324,22.69157041,97.335,97.243,25.84796663]
[1770186101526,22.69157041,97.335,97.246,25.84796663]
[1770186101928,22.69157041,97.335,97.248,25.84796663]
[1770186103120,22.69157041,97.335,97.25,25.84796663]
[1770186104125,22.67837845,97.334,97.25,25.84796663]
[1770186104325,8.47736285,97.34,97.25,25.84796663]
[1770186104326,22.67837845,97.332,97.25,25.84796663]
[1770186106329,22.73988664,97.33,97.25,25.84796663]
[1770186106528,22.73988664,97.328,97.25,25.84796663]
[1770186107335,22.74530827,97.319,97.25,25.84796663]
[1770186107630,22.74530827,97.299,97.221,25.84796663]
[1770186107829,22.74530827,97.299,97.223,25.84796663]
[1770186108031,22.74530827,97.297,97.223,25.84796663]
[1770186108227,22.74530827,97.295,97.223,25.84796663]
[1770186108531,22.74828576,97.293,97.223,25.84796663]
[1770186108732,22.74828576,97.291,97.223,25.84796663]
[1770186108925,22.74828576,97.289,97.223,25.84796663]
[1770186109128,8.47736285,97.3,97.223,25.84796663]
[1770186109129,22.74828576,97.287,97.223,25.84796663]
[1770186109331,31.22512475,97.286,97.223,25.84796663]
[1770186109534,31.29751456,97.285,97.223,25.84796663]
[1770186109739,22.82067557,97.279,97.202,9.2715]
[1770186110028,22.82067557,97.277,97.203,25.84796663]
[1770186110225,22.82067557,97.275,97.203,25.84796663]
[1770186110423,22.82364161,97.273,97.203,25.84796663]
[1770186110628,22.82364161,97.271,97.203,25.84796663]
[1770186110829,22.89127527,97.269,97.203,25.84796663]
[1770186111133,22.89127527,97.267,97.203,25.84796663]
[1770186111337,22.89127527,97.265,97.203,25.84796663]
[1770186111538,22.97019304,97.263,97.203,25.84796663]
[1770186112024,8.47736285,97.28,97.203,25.84796663]
[1770186112223,8.49434812,97.279,97.203,25.84796663]
[1770186112428,22.97223089,97.279,97.203,25.84796663]
[1770186112624,22.97223089,97.277,97.203,25.84796663]
[1770186112831,22.97223089,97.275,97.203,25.84796663]
[1770186113128,22.97223089,97.273,97.203,25.84796663]
[1770186113333,22.97223089,97.271,97.203,25.84796663]
[1770186113635,22.92676084,97.259,97.186,24.7789168]
[1770186113837,22.92676084,97.257,97.186,24.7789168]
[1770186114033,22.92676084,97.239,97.186,24.7789168]
[1770186114329,22.92932028,97.237,97.169,82.02]
[1770186114534,22.92932028,97.235,97.169,82.02]
[1770186114835,22.92932028,97.233,97.169,82.02]
[1770186115034,22.92932028,97.231,97.169,82.02]
[1770186115233,22.92932028,97.229,97.169,82.02]
[1770186115634,23.49133853,97.247,97.17,24.7789168]
[1770186115829,23.49133853,97.247,97.172,24.7789168]
[1770186116731,23.43294802,97.239,97.172,24.7789168]
[1770186117336,32.53890969,97.238,97.172,24.7789168]
[1770186117838,23.27070969,97.238,97.172,24.7789168]
[1770186119735,23.27070969,97.238,97.086,10.26]
[1770186119736,23.28715464,97.219,97.154,23.37789303]
[1770186119938,23.28715464,97.199,97.136,23.37789303]
[1770186120733,8.47736285,97.23,97.09,214.03736285]
[1770186120734,23.29002441,97.179,97.117,23.37789303]
[1770186121538,23.29002441,97.179,97.079,144.4069]
[1770186121539,23.60584473,97.159,97.097,23.37789303]
[1770186123540,8.48595003,97.18,97.097,23.37789303]
[1770186123737,8.48595003,97.18,97.099,23.37789303]
[1770186123941,23.69301948,97.198,97.11,8.48595003]
[1770186124236,23.69301948,97.198,97.112,23.37789303]
[1770186124435,23.69301948,97.198,97.09,175.2506]
[1770186124436,23.69565861,97.179,97.113,23.37789303]
[1770186124635,8.48595003,97.16,97.095,23.37789303]
[1770186125940,8.48595003,97.18,97.097,23.37789303]
[1770186126139,23.38665224,97.179,97.099,23.37789303]
[1770186127439,23.38665224,97.179,97.079,144.4071]
[1770186127440,23.38665224,97.179,97.101,23.37789303]
[1770186127635,23.64862669,97.198,97.101,23.37789303]
[1770186127839,23.64862669,97.198,97.104,23.37789303]
[1770186128039,23.64862669,97.198,97.123,23.37789303]
[1770186129042,23.65062492,97.219,97.126,23.37789303]
[1770186129538,23.65062492,97.219,97.139,23.37789303]
[1770186129842,23.31210651,97.237,97.142,23.37789303]
[1770186130333,23.31210651,97.237,97.151,23.37789303]
[1770186131838,23.31210651,97.237,97.165,23.37789303]
[1770186134947,23.30835513,97.233,97.146,23.37789303]
[1770186135345,23.30835513,97.233,97.148,23.37789303]
[1770186136946,23.30835513,97.233,97.15,23.37789303]
[1770186137747,24.03908284,97.229,97.153,23.37789303]
[1770186138546,24.03908284,97.229,97.155,23.37789303]
[1770186139045,24.03908284,97.229,97.158,23.37789303]
[1770186140943,24.02972047,97.219,97.139,24.14947122]
[1770186141339,24.02972047,97.199,97.139,24.14947122]
[1770186142149,9.2725,97.192,97.139,24.14947122]
[1770186143453,24.02972047,97.219,97.139,24.14947122]
[1770186143646,24.02972047,97.219,97.141,24.14947122]
[1770186144146,8.48595003,97.2,97.141,24.14947122]
[1770186144345,24.02972047,97.199,97.141,24.14947122]
[1770186147250,33.30152047,97.199,97.141,24.14947122]
[1770186151354,9.2721,97.197,97.141,24.14947122]
[1770186153368,8.51847761,97.196,97.141,24.14947122]
[1770186153660,9.2721,97.197,97.141,24.14947122]
[1770186154162,24.02972047,97.215,97.141,24.14947122]
[1770186154363,24.02972047,97.213,97.143,24.14947122]
[1770186154563,32.55826314,97.212,97.143,24.14947122]
[1770186154763,8.52854267,97.211,97.143,24.14947122]
[1770186154961,8.52854267,97.21,97.143,24.14947122]
[1770186155264,8.52854267,97.209,97.145,24.14947122]
[1770186155563,33.29882047,97.227,97.145,24.14947122]
[1770186155765,24.02972047,97.225,97.145,24.14947122]
[1770186155965,24.02972047,97.213,97.145,24.14947122]
[1770186156163,24.02972047,97.211,97.145,24.14947122]
[1770186156461,24.02972047,97.209,97.144,410.5]
[1770186156666,24.02972047,97.207,97.144,410.5]
[1770186156865,24.02972047,97.205,97.144,410.5]
[1770186157066,24.02972047,97.203,97.144,410.5]
[1770186157366,8.53730515,97.202,97.144,410.5]
[1770186157668,24.02972047,97.203,97.145,24.14947122]
[1770186157669,8.53730515,97.201,97.145,24.14947122]
[1770186157867,8.53730515,97.2,97.145,24.14947122]
[1770186158159,8.53730515,97.199,97.145,24.14947122]
[1770186158362,8.53730515,97.198,97.145,24.14947122]
[1770186158569,9.2703,97.216,97.147,24.14947122]
[1770186158758,8.55016409,97.215,97.147,24.14947122]
[1770186158955,8.55016409,97.214,97.147,24.14947122]
[1770186159159,8.55016409,97.213,97.147,24.14947122]
[1770186159358,8.55016409,97.212,97.147,24.14947122]
[1770186159561,12.46868158,97.234,97.147,24.14947122]
[1770186159562,8.55016409,97.211,97.147,24.14947122]
[1770186159758,9.37310432,97.241,97.151,24.14947122]
[1770186159963,8.55340537,97.24,97.151,24.14947122]
[1770186160160,8.55340537,97.239,97.151,24.14947122]
[1770186160363,8.55340537,97.238,97.151,24.14947122]
[1770186160567,8.55340537,97.237,97.161,24.14947122]
[1770186160772,8.55340537,97.236,97.161,24.14947122]
[1770186160972,8.55340537,97.235,97.161,24.14947122]
[1770186161171,8.55340537,97.234,97.161,24.14947122]
[1770186161367,8.55340537,97.233,97.161,24.14947122]
[1770186161568,8.55340537,97.232,97.161,24.14947122]
[1770186161775,8.55340537,97.231,97.166,24.14947122]
[1770186161976,8.55340537,97.23,97.166,24.14947122]
[1770186162175,8.55340537,97.229,97.166,24.14947122]
[1770186162380,8.55340537,97.228,97.166,24.14947122]
[1770186162679,24.02972047,97.256,97.171,24.14947122]